[Event "Early-Titled-Tuesday-Blitz-April-23-2024"]
[Site "Chess.com"]
[Date "2024.04.23"]
[Round "5"]
[White "shimastream"]
[Black "Aygehovit1992"]
[Result "1-0"]
[WhiteElo "3046"]
[BlackElo "2743"]
[TimeControl "180+1"]
[EndTime "8:57:03 PDT"]
[Termination "shimastream won on time"]

1. d4 {[%clk 0:03:00.9]} 1... Nf6 {[%clk 0:02:59.8]} 2. Nc3 {[%clk 0:03:01.2]}
2... d5 {[%clk 0:02:59.2]} 3. Bf4 {[%clk 0:03:01.8]} 3... g6 {[%clk 0:02:58.7]}
4. e3 {[%clk 0:02:55.4]} 4... Bg7 {[%clk 0:02:58.8]} 5. h4 {[%clk 0:02:55.8]}
5... h5 {[%clk 0:02:55.8]} 6. Qd2 {[%clk 0:02:48.8]} 6... O-O {[%clk 0:02:55.7]}
7. Nf3 {[%clk 0:02:42.8]} 7... c5 {[%clk 0:02:55.8]} 8. dxc5 {[%clk 0:02:34.4]}
8... Nc6 {[%clk 0:02:47.3]} 9. Bb5 {[%clk 0:02:32.8]} 9... Ne4 {[%clk
0:02:32.2]} 10. Nxe4 {[%clk 0:02:04.6]} 10... dxe4 {[%clk 0:02:33.1]} 11. Qxd8
{[%clk 0:02:04]} 11... Rxd8 {[%clk 0:02:32.2]} 12. Ng5 {[%clk 0:02:04.4]} 12...
Bxb2 {[%clk 0:02:26.3]} 13. Rb1 {[%clk 0:02:04.5]} 13... Bc3+ {[%clk 0:02:24.6]}
14. Kf1 {[%clk 0:02:04.6]} 14... Bf5 {[%clk 0:02:13.5]} 15. Bc4 {[%clk
0:02:03.4]} 15... e6 {[%clk 0:01:47.2]} 16. Kg1 {[%clk 0:01:52.9]} 16... Na5
{[%clk 0:01:31.9]} 17. Bb5 {[%clk 0:01:43.9]} 17... Rac8 {[%clk 0:01:29.4]} 18.
Bd6 {[%clk 0:01:38]} 18... b6 {[%clk 0:01:08.9]} 19. Kh2 {[%clk 0:01:30.7]}
19... bxc5 {[%clk 0:01:08.7]} 20. Bg3 {[%clk 0:01:31]} 20... Rd2 {[%clk
0:01:04.1]} 21. Rhd1 {[%clk 0:01:22.7]} 21... Rxd1 {[%clk 0:00:40.9]} 22. Rxd1
{[%clk 0:01:22.3]} 22... Nc6 {[%clk 0:00:41.7]} 23. Rd7 {[%clk 0:01:18.1]} 23...
Ne5 {[%clk 0:00:41.6]} 24. Rxa7 {[%clk 0:01:12.3]} 24... Ng4+ {[%clk 0:00:41.4]}
25. Kg1 {[%clk 0:01:12.2]} 25... Rd8 {[%clk 0:00:37.5]} 26. Rd7 {[%clk
0:01:12.2]} 26... Rxd7 {[%clk 0:00:17.5]} 27. Bxd7 {[%clk 0:01:13.1]} 27... Nf6
{[%clk 0:00:15.8]} 28. Bc6 {[%clk 0:01:11.2]} 28... Nd5 {[%clk 0:00:16.3]} 29.
Be8 {[%clk 0:00:45.5]} 29... f6 {[%clk 0:00:03.2]} 30. Bf7+ {[%clk 0:00:45.7]}
30... Kg7 {[%clk 0:00:03.2]} 31. Bxe6 {[%clk 0:00:46.6]} 31... fxg5 {[%clk
0:00:03.6]} 32. Bxd5 {[%clk 0:00:46.2]} 32... gxh4 {[%clk 0:00:02.1]} 33. Bxh4
{[%clk 0:00:46.5]} 33... Bd7 {[%clk 0:00:01.1]} 34. Be7 {[%clk 0:00:44.6]} 1-0

[Event "Early-Titled-Tuesday-Blitz-April-23-2024"]
[Site "Chess.com"]
[Date "2024.04.23"]
[Round "5"]
[White "CarlosjPineror"]
[Black "viktorgen2021"]
[Result "1/2-1/2"]
[WhiteElo "2768"]
[BlackElo "2478"]
[TimeControl "180+1"]
[EndTime "8:57:06 PDT"]
[Termination "Game drawn by agreement"]

1. e4 {[%clk 0:02:59.5]} 1... g6 {[%clk 0:02:31.7]} 2. d4 {[%clk 0:02:59.1]}
2... Bg7 {[%clk 0:02:29.9]} 3. Nc3 {[%clk 0:02:59.3]} 3... d6 {[%clk 0:02:29]}
4. Be3 {[%clk 0:02:58.8]} 4... c6 {[%clk 0:02:28.9]} 5. f3 {[%clk 0:02:59.3]}
5... Nd7 {[%clk 0:02:28.5]} 6. Qd2 {[%clk 0:02:59.9]} 6... b5 {[%clk 0:02:28.9]}
7. h4 {[%clk 0:03:00.3]} 7... h5 {[%clk 0:02:28.5]} 8. Nh3 {[%clk 0:03:00]} 8...
Nb6 {[%clk 0:02:28.4]} 9. Ng5 {[%clk 0:02:57.1]} 9... Nc4 {[%clk 0:02:27.5]} 10.
Bxc4 {[%clk 0:02:56.2]} 10... bxc4 {[%clk 0:02:28.4]} 11. O-O {[%clk 0:02:47.2]}
11... Nh6 {[%clk 0:02:23.4]} 12. Qe2 {[%clk 0:02:40.4]} 12... d5 {[%clk
0:02:18.3]} 13. b3 {[%clk 0:02:23.4]} 13... O-O {[%clk 0:02:10.4]} 14. bxc4
{[%clk 0:02:21.1]} 14... Ba6 {[%clk 0:02:09.6]} 15. Rfb1 {[%clk 0:02:18.9]}
15... Bxc4 {[%clk 0:02:09.3]} 16. Qf2 {[%clk 0:02:18.1]} 16... dxe4 {[%clk
0:02:07.1]} 17. Ncxe4 {[%clk 0:02:17.8]} 17... Nf5 {[%clk 0:02:04.5]} 18. c3
{[%clk 0:02:17]} 18... Nxe3 {[%clk 0:01:50.8]} 19. Qxe3 {[%clk 0:02:15.9]} 19...
Rb8 {[%clk 0:01:50.2]} 20. Nd2 {[%clk 0:02:06.1]} 20... Bd5 {[%clk 0:01:35.7]}
21. Nge4 {[%clk 0:02:04.6]} 21... Qa5 {[%clk 0:01:25.3]} 22. Nb3 {[%clk
0:01:49.6]} 22... Qc7 {[%clk 0:01:16.8]} 23. Nec5 {[%clk 0:01:43.3]} 23... Rb6
{[%clk 0:01:11.6]} 24. Qe2 {[%clk 0:01:40.2]} 24... a5 {[%clk 0:01:02.5]} 25.
Re1 {[%clk 0:01:29.6]} 25... Bxb3 {[%clk 0:00:49.4]} 26. axb3 {[%clk 0:01:28.6]}
26... e5 {[%clk 0:00:45.9]} 27. dxe5 {[%clk 0:01:27.9]} 27... Rb5 {[%clk
0:00:43]} 28. b4 {[%clk 0:01:25]} 28... Re8 {[%clk 0:00:31.3]} 29. e6 {[%clk
0:01:16.5]} 29... f5 {[%clk 0:00:31.1]} 30. e7 {[%clk 0:01:12.9]} 30... Kh7
{[%clk 0:00:31.1]} 31. Qe6 {[%clk 0:01:01.8]} 31... axb4 {[%clk 0:00:23.5]} 32.
Qf7 {[%clk 0:00:57.6]} 32... Rbb8 {[%clk 0:00:13.8]} 33. Ne6 {[%clk 0:00:49.1]}
33... Qb6+ {[%clk 0:00:11.3]} 34. Kh1 {[%clk 0:00:48.5]} 34... Rg8 {[%clk
0:00:11.8]} 35. Ng5+ {[%clk 0:00:48.3]} 35... Kh6 {[%clk 0:00:11.9]} 36. Qxg6+
{[%clk 0:00:49.2]} 36... Kxg6 {[%clk 0:00:11.5]} 1/2-1/2

[Event "Early-Titled-Tuesday-Blitz-April-23-2024"]
[Site "Chess.com"]
[Date "2024.04.23"]
[Round "5"]
[White "ReadySkate"]
[Black "Slovineanu"]
[Result "1-0"]
[WhiteElo "2655"]
[BlackElo "2497"]
[TimeControl "180+1"]
[EndTime "8:57:06 PDT"]
[Termination "ReadySkate won by resignation"]

1. d4 {[%clk 0:03:00.9]} 1... Nf6 {[%clk 0:02:59.4]} 2. c4 {[%clk 0:03:01.4]}
2... e6 {[%clk 0:02:59.2]} 3. Nc3 {[%clk 0:03:02.1]} 3... d5 {[%clk 0:02:59.3]}
4. cxd5 {[%clk 0:03:02]} 4... Nxd5 {[%clk 0:02:59.4]} 5. Bg5 {[%clk 0:03:02.7]}
5... Qxg5 {[%clk 0:02:57.3]} 6. Nf3 {[%clk 0:03:02.3]} 6... Qd8 {[%clk
0:02:52.4]} 7. e4 {[%clk 0:02:56.8]} 7... Nxc3 {[%clk 0:02:52.3]} 8. bxc3 {[%clk
0:02:57.7]} 8... c5 {[%clk 0:02:51.6]} 9. Bd3 {[%clk 0:02:56.4]} 9... cxd4
{[%clk 0:02:51.5]} 10. cxd4 {[%clk 0:02:56.7]} 10... Bb4+ {[%clk 0:02:49.9]} 11.
Ke2 {[%clk 0:02:56.2]} 11... Nc6 {[%clk 0:02:41.1]} 12. h4 {[%clk 0:02:54]}
12... O-O {[%clk 0:02:34]} 13. e5 {[%clk 0:02:53.1]} 13... h6 {[%clk 0:02:16.8]}
14. Bc2 {[%clk 0:02:41.3]} 14... Bc3 {[%clk 0:02:12.7]} 15. Qd3 {[%clk
0:02:39.7]} 15... f5 {[%clk 0:01:39.6]} 16. Qxc3 {[%clk 0:02:35.4]} 16... Qa5
{[%clk 0:01:31]} 17. Qxa5 {[%clk 0:02:28.6]} 17... Nxa5 {[%clk 0:01:30.7]} 18.
Rhc1 {[%clk 0:02:29.1]} 18... b6 {[%clk 0:01:29.2]} 19. Bb3 {[%clk 0:02:24.5]}
19... Nxb3 {[%clk 0:01:26.8]} 20. axb3 {[%clk 0:02:25.4]} 20... Bb7 {[%clk
0:01:25.5]} 21. Rc7 {[%clk 0:02:24.6]} 21... Rf7 {[%clk 0:01:24.4]} 22. Rac1
{[%clk 0:02:22.5]} 22... Bd5 {[%clk 0:01:23.4]} 23. b4 {[%clk 0:02:17]} 23... a5
{[%clk 0:01:23]} 24. bxa5 {[%clk 0:02:09.1]} 24... Rxc7 {[%clk 0:01:22.6]} 25.
Rxc7 {[%clk 0:02:08.4]} 25... bxa5 {[%clk 0:01:23]} 26. Rc3 {[%clk 0:02:05.6]}
26... a4 {[%clk 0:01:22.5]} 27. Ra3 {[%clk 0:02:06.1]} 27... Kf7 {[%clk
0:01:14]} 28. g3 {[%clk 0:02:05.2]} 28... Bxf3+ {[%clk 0:01:07.6]} 29. Kxf3
{[%clk 0:02:03.9]} 29... g5 {[%clk 0:01:07.2]} 30. hxg5 {[%clk 0:02:03.3]} 30...
hxg5 {[%clk 0:01:07.2]} 31. Ke3 {[%clk 0:02:02.8]} 31... Ke7 {[%clk 0:01:07.8]}
32. Kd3 {[%clk 0:01:57]} 32... Kd7 {[%clk 0:01:08.3]} 33. Kc4 {[%clk 0:01:57.4]}
33... Kc6 {[%clk 0:01:08.9]} 34. f3 {[%clk 0:01:54.3]} 34... Kb6 {[%clk
0:01:01.5]} 35. d5 {[%clk 0:01:51.9]} 35... exd5+ {[%clk 0:00:59.2]} 36. Kxd5
{[%clk 0:01:52.8]} 36... Kb5 {[%clk 0:00:58.4]} 37. Ke6 {[%clk 0:01:52.6]} 37...
f4 {[%clk 0:00:57.6]} 38. gxf4 {[%clk 0:01:51.3]} 38... gxf4 {[%clk 0:00:58.2]}
39. Kf5 {[%clk 0:01:47.1]} 39... Kb4 {[%clk 0:00:58.5]} 40. Ra1 {[%clk 0:01:47]}
40... Rf8+ {[%clk 0:00:58.3]} 41. Kg6 {[%clk 0:01:47.3]} 41... a3 {[%clk
0:00:57.3]} 42. e6 {[%clk 0:01:47.7]} 42... Kb3 {[%clk 0:00:22.2]} 43. e7 {[%clk
0:01:44.8]} 43... Ra8 {[%clk 0:00:22.4]} 44. Kf7 {[%clk 0:01:31.5]} 44... Kb2
{[%clk 0:00:22]} 45. Re1 {[%clk 0:01:17.3]} 45... a2 {[%clk 0:00:15.6]} 46. e8=Q
{[%clk 0:01:12.4]} 46... Rxe8 {[%clk 0:00:15.7]} 47. Kxe8 {[%clk 0:01:13.3]}
47... a1=Q {[%clk 0:00:16.2]} 48. Rxa1 {[%clk 0:01:12.9]} 48... Kxa1 {[%clk
0:00:16.8]} 49. Ke7 {[%clk 0:01:13.6]} 49... Kb2 {[%clk 0:00:17.4]} 50. Ke6
{[%clk 0:01:14.2]} 50... Kc3 {[%clk 0:00:18]} 51. Ke5 {[%clk 0:01:14.7]} 51...
Kc4 {[%clk 0:00:17.4]} 52. Kxf4 {[%clk 0:01:15.3]} 52... Kd5 {[%clk 0:00:17.8]}
53. Kf5 {[%clk 0:01:15.9]} 53... Kd6 {[%clk 0:00:17.8]} 54. Kf6 {[%clk
0:01:15.8]} 1-0

[Event "Early-Titled-Tuesday-Blitz-April-23-2024"]
[Site "Chess.com"]
[Date "2024.04.23"]
[Round "5"]
[White "DamianoLew95"]
[Black "yobdc"]
[Result "0-1"]
[WhiteElo "2786"]
[BlackElo "2618"]
[TimeControl "180+1"]
[EndTime "8:57:07 PDT"]
[Termination "yobdc won by resignation"]

1. e4 {[%clk 0:03:00.9]} 1... c5 {[%clk 0:02:59.2]} 2. Nf3 {[%clk 0:03:01]} 2...
a6 {[%clk 0:02:59.1]} 3. c3 {[%clk 0:02:58.1]} 3... e6 {[%clk 0:02:55.7]} 4. d4
{[%clk 0:02:58]} 4... d5 {[%clk 0:02:55.3]} 5. e5 {[%clk 0:02:56.2]} 5... Bd7
{[%clk 0:02:55.1]} 6. Bd3 {[%clk 0:02:52.4]} 6... Bb5 {[%clk 0:02:53.8]} 7. h4
{[%clk 0:02:41.3]} 7... Nc6 {[%clk 0:02:42.5]} 8. Na3 {[%clk 0:02:13.5]} 8...
Bxd3 {[%clk 0:02:41.7]} 9. Qxd3 {[%clk 0:02:14.4]} 9... cxd4 {[%clk 0:02:41]}
10. cxd4 {[%clk 0:02:15.3]} 10... Nge7 {[%clk 0:02:27.9]} 11. h5 {[%clk
0:02:14.2]} 11... h6 {[%clk 0:02:26.3]} 12. g4 {[%clk 0:02:10.6]} 12... Nc8
{[%clk 0:02:08]} 13. Bd2 {[%clk 0:01:55.4]} 13... Qb6 {[%clk 0:02:05.3]} 14. Nc2
{[%clk 0:01:39.1]} 14... Qxb2 {[%clk 0:02:02.2]} 15. O-O {[%clk 0:01:39.1]}
15... Qb5 {[%clk 0:02:01.7]} 16. Qxb5 {[%clk 0:01:25.9]} 16... axb5 {[%clk
0:02:01.6]} 17. Rfb1 {[%clk 0:01:25.2]} 17... N8a7 {[%clk 0:01:51.3]} 18. a4
{[%clk 0:01:24.9]} 18... b4 {[%clk 0:01:36.3]} 19. Nxb4 {[%clk 0:01:22.3]} 19...
Bxb4 {[%clk 0:01:29]} 20. Bxb4 {[%clk 0:01:23.2]} 20... Nxb4 {[%clk 0:01:22.9]}
21. Rxb4 {[%clk 0:01:24.1]} 21... O-O-O {[%clk 0:01:19.4]} 22. a5 {[%clk
0:01:14.9]} 22... Rd7 {[%clk 0:01:12.8]} 23. a6 {[%clk 0:01:06.8]} 23... b5
{[%clk 0:01:05.4]} 24. Ne1 {[%clk 0:00:55]} 24... Rc7 {[%clk 0:01:04.5]} 25. Rb3
{[%clk 0:00:45.7]} 25... Rc4 {[%clk 0:01:03.6]} 26. Rf3 {[%clk 0:00:45.6]} 26...
Rf8 {[%clk 0:01:02]} 27. Rf4 {[%clk 0:00:45.9]} 27... Kc7 {[%clk 0:00:39.9]} 28.
Nd3 {[%clk 0:00:44.8]} 28... Nc6 {[%clk 0:00:18.5]} 29. Nc5 {[%clk 0:00:35.9]}
29... Nxd4 {[%clk 0:00:13.2]} 30. a7 {[%clk 0:00:26.4]} 30... Ne2+ {[%clk
0:00:12.5]} 31. Kh2 {[%clk 0:00:23.6]} 31... Nxf4 {[%clk 0:00:12.6]} 0-1

[Event "Early-Titled-Tuesday-Blitz-April-23-2024"]
[Site "Chess.com"]
[Date "2024.04.23"]
[Round "5"]
[White "Grandelicious"]
[Black "Martial2008"]
[Result "1-0"]
[WhiteElo "2901"]
[BlackElo "2681"]
[TimeControl "180+1"]
[EndTime "8:57:09 PDT"]
[Termination "Grandelicious won by resignation"]

1. Nf3 {[%clk 0:03:00.9]} 1... Nf6 {[%clk 0:02:58.5]} 2. c4 {[%clk 0:02:58.8]}
2... e6 {[%clk 0:02:57.7]} 3. e3 {[%clk 0:02:59.4]} 3... d5 {[%clk 0:02:56.9]}
4. b3 {[%clk 0:03:00.1]} 4... c5 {[%clk 0:02:48.2]} 5. Bb2 {[%clk 0:03:00.2]}
5... Nc6 {[%clk 0:02:45.1]} 6. cxd5 {[%clk 0:03:00.7]} 6... exd5 {[%clk
0:02:45.2]} 7. Be2 {[%clk 0:03:01.3]} 7... Bd6 {[%clk 0:02:44.2]} 8. O-O {[%clk
0:03:00.4]} 8... O-O {[%clk 0:02:44.3]} 9. d4 {[%clk 0:03:01.1]} 9... Bg4 {[%clk
0:02:38]} 10. dxc5 {[%clk 0:02:59.3]} 10... Bxc5 {[%clk 0:02:38.3]} 11. Nc3
{[%clk 0:03:00.1]} 11... Bxf3 {[%clk 0:02:17.2]} 12. Bxf3 {[%clk 0:03:00.2]}
12... d4 {[%clk 0:02:17.8]} 13. Na4 {[%clk 0:03:00.4]} 13... Bb6 {[%clk
0:02:03.1]} 14. Nxb6 {[%clk 0:02:49.5]} 14... Qxb6 {[%clk 0:02:04]} 15. Bxd4
{[%clk 0:02:50.2]} 15... Nxd4 {[%clk 0:02:02.3]} 16. Qxd4 {[%clk 0:02:51.1]}
16... Qxd4 {[%clk 0:02:00.7]} 17. exd4 {[%clk 0:02:52]} 17... Rad8 {[%clk
0:02:01.1]} 18. Bxb7 {[%clk 0:02:48]} 18... Rxd4 {[%clk 0:02:01]} 19. Rfd1
{[%clk 0:02:47.5]} 19... Rfd8 {[%clk 0:02:00.4]} 20. Bf3 {[%clk 0:02:28.2]}
20... g6 {[%clk 0:01:26.7]} 21. Kf1 {[%clk 0:02:10.4]} 21... Rxd1+ {[%clk
0:01:19.1]} 22. Rxd1 {[%clk 0:02:11.3]} 22... Rc8 {[%clk 0:01:18.7]} 23. Ke2
{[%clk 0:02:03.5]} 23... a5 {[%clk 0:01:14.2]} 24. Kd2 {[%clk 0:01:57.9]} 24...
Kg7 {[%clk 0:01:12.1]} 25. Rc1 {[%clk 0:01:58.1]} 25... Rd8+ {[%clk 0:01:12.2]}
26. Kc3 {[%clk 0:01:50.8]} 26... Rc8+ {[%clk 0:01:07.9]} 27. Kb2 {[%clk
0:01:50.8]} 27... Rd8 {[%clk 0:01:08.5]} 28. Rc5 {[%clk 0:01:43]} 28... Rd2+
{[%clk 0:01:07.6]} 29. Rc2 {[%clk 0:01:43.6]} 29... Rd4 {[%clk 0:01:04.6]} 30.
a4 {[%clk 0:01:36.7]} 30... Nd7 {[%clk 0:01:03.8]} 31. Kc3 {[%clk 0:01:32]}
31... Rd6 {[%clk 0:01:01.6]} 32. Rd2 {[%clk 0:01:31.1]} 32... Rxd2 {[%clk
0:00:52.9]} 33. Kxd2 {[%clk 0:01:32]} 33... Kf6 {[%clk 0:00:49.5]} 34. Kc3
{[%clk 0:01:32.4]} 34... Ke5 {[%clk 0:00:42]} 35. Kc4 {[%clk 0:01:29.2]} 35...
Kd6 {[%clk 0:00:39.6]} 36. Kb5 {[%clk 0:01:18.1]} 36... Nc5 {[%clk 0:00:39.7]}
37. Kxa5 {[%clk 0:01:17.4]} 37... Nxb3+ {[%clk 0:00:39.7]} 38. Kb6 {[%clk
0:01:18.1]} 38... Nc5 {[%clk 0:00:37.2]} 39. a5 {[%clk 0:01:18.3]} 39... Nd7+
{[%clk 0:00:37.5]} 40. Kb5 {[%clk 0:01:15.5]} 40... Kc7 {[%clk 0:00:33.2]} 41.
a6 {[%clk 0:01:15]} 41... Kb8 {[%clk 0:00:33.6]} 42. Kc6 {[%clk 0:01:15.2]}
42... Nf6 {[%clk 0:00:25.2]} 43. Kd6 {[%clk 0:01:10.7]} 43... Ng8 {[%clk
0:00:25]} 44. Bd5 {[%clk 0:01:07.4]} 44... Ka7 {[%clk 0:00:23.6]} 45. Bxf7
{[%clk 0:01:06.7]} 45... Nh6 {[%clk 0:00:23.9]} 46. Be6 {[%clk 0:01:07.4]} 46...
Kxa6 {[%clk 0:00:23.5]} 47. Ke5 {[%clk 0:01:05.2]} 47... Kb6 {[%clk 0:00:23.3]}
48. Kf6 {[%clk 0:01:05.7]} 48... Kc5 {[%clk 0:00:20.8]} 49. Kg5 {[%clk
0:01:05.4]} 49... Kd6 {[%clk 0:00:21.4]} 50. Kxh6 {[%clk 0:01:06]} 50... Kxe6
{[%clk 0:00:22]} 51. Kxh7 {[%clk 0:01:06.8]} 51... Kf7 {[%clk 0:00:22.8]} 52.
Kh6 {[%clk 0:01:06.9]} 52... Kf6 {[%clk 0:00:23.5]} 53. g4 {[%clk 0:01:07.5]}
53... Kf7 {[%clk 0:00:23.6]} 54. g5 {[%clk 0:01:07.5]} 54... Kf8 {[%clk
0:00:24.2]} 55. Kxg6 {[%clk 0:01:08]} 55... Kg8 {[%clk 0:00:25.1]} 56. Kh6
{[%clk 0:01:02.9]} 56... Kh8 {[%clk 0:00:26]} 57. g6 {[%clk 0:01:03.2]} 57...
Kg8 {[%clk 0:00:26.5]} 58. g7 {[%clk 0:01:03.8]} 1-0

[Event "Early-Titled-Tuesday-Blitz-April-23-2024"]
[Site "Chess.com"]
[Date "2024.04.23"]
[Round "5"]
[White "GMKrikor"]
[Black "MagnusCarlsen"]
[Result "0-1"]
[WhiteElo "2892"]
[BlackElo "3216"]
[TimeControl "180+1"]
[EndTime "8:57:10 PDT"]
[Termination "MagnusCarlsen won by resignation"]

1. Nf3 {[%clk 0:03:00.9]} 1... b6 {[%clk 0:02:50.8]} 2. c4 {[%clk 0:03:00.3]}
2... Bb7 {[%clk 0:02:49.5]} 3. Nc3 {[%clk 0:03:00.8]} 3... Nf6 {[%clk
0:02:48.7]} 4. d4 {[%clk 0:03:00.9]} 4... e6 {[%clk 0:02:42.5]} 5. e3 {[%clk
0:02:59.7]} 5... d5 {[%clk 0:02:38.4]} 6. cxd5 {[%clk 0:02:59.3]} 6... exd5
{[%clk 0:02:38.6]} 7. Bb5+ {[%clk 0:02:59.4]} 7... c6 {[%clk 0:02:21.8]} 8. Bd3
{[%clk 0:02:59.3]} 8... Nbd7 {[%clk 0:02:18.8]} 9. O-O {[%clk 0:02:56.5]} 9...
Be7 {[%clk 0:02:19.4]} 10. e4 {[%clk 0:02:52.5]} 10... dxe4 {[%clk 0:02:20.3]}
11. Nxe4 {[%clk 0:02:50.9]} 11... Nxe4 {[%clk 0:02:21.2]} 12. Bxe4 {[%clk
0:02:51.8]} 12... Nf6 {[%clk 0:02:22.1]} 13. Bc2 {[%clk 0:02:43.1]} 13... O-O
{[%clk 0:02:22.7]} 14. Re1 {[%clk 0:02:42.1]} 14... c5 {[%clk 0:02:22.7]} 15.
dxc5 {[%clk 0:02:32.8]} 15... Qxd1 {[%clk 0:02:19.8]} 16. Rxd1 {[%clk
0:01:40.7]} 16... Bxc5 {[%clk 0:02:20.7]} 17. Be3 {[%clk 0:01:39]} 17... Bxe3
{[%clk 0:02:20.5]} 18. fxe3 {[%clk 0:01:39.9]} 18... Rfe8 {[%clk 0:02:20.5]} 19.
Re1 {[%clk 0:01:15.3]} 19... Rad8 {[%clk 0:02:19.7]} 20. Rad1 {[%clk 0:01:03]}
20... Rxd1 {[%clk 0:02:19.3]} 21. Bxd1 {[%clk 0:01:03.9]} 21... Ng4 {[%clk
0:02:17.3]} 22. Bb3 {[%clk 0:00:28.2]} 22... Rxe3 {[%clk 0:02:07.5]} 23. Rd1
{[%clk 0:00:16.6]} 23... Kf8 {[%clk 0:01:45.1]} 24. Rd7 {[%clk 0:00:09]} 24...
Bxf3 {[%clk 0:01:45.1]} 25. Rxf7+ {[%clk 0:00:07.8]} 25... Ke8 {[%clk
0:01:45.3]} 26. Rxf3 {[%clk 0:00:08.5]} 26... Rxf3 {[%clk 0:01:44.9]} 27. gxf3
{[%clk 0:00:08.7]} 27... Ne5 {[%clk 0:01:45.6]} 28. Bd1 {[%clk 0:00:07.1]} 28...
Ke7 {[%clk 0:01:40.2]} 29. Be2 {[%clk 0:00:05.7]} 29... Ng6 {[%clk 0:01:32.7]}
30. Kf2 {[%clk 0:00:05.9]} 30... Nf4 {[%clk 0:01:28.3]} 31. Ba6 {[%clk
0:00:05.6]} 31... Kd6 {[%clk 0:01:28.4]} 32. Ke3 {[%clk 0:00:05.9]} 32... Ke5
{[%clk 0:01:29.1]} 33. Bc4 {[%clk 0:00:05.4]} 33... h5 {[%clk 0:01:28.7]} 34. b4
{[%clk 0:00:02.8]} 34... h4 {[%clk 0:01:28]} 35. a3 {[%clk 0:00:03.2]} 35... g5
{[%clk 0:01:27.1]} 36. a4 {[%clk 0:00:03.6]} 36... a5 {[%clk 0:01:26.6]} 37.
bxa5 {[%clk 0:00:04.5]} 37... bxa5 {[%clk 0:01:27.5]} 38. Bb5 {[%clk 0:00:03.8]}
38... Nd5+ {[%clk 0:01:27.5]} 39. Kf2 {[%clk 0:00:01.7]} 39... Kd4 {[%clk
0:01:27.3]} 40. Bc6 {[%clk 0:00:02]} 40... Nf4 {[%clk 0:01:27.1]} 41. Bb7 {[%clk
0:00:01.8]} 41... Kd3 {[%clk 0:01:25.3]} 42. Bc6 {[%clk 0:00:02.1]} 42... Kd2
{[%clk 0:01:25.9]} 43. Bb5 {[%clk 0:00:02.5]} 43... Nd3+ {[%clk 0:01:13.1]} 44.
Bxd3 {[%clk 0:00:02]} 44... Kxd3 {[%clk 0:01:14]} 45. f4 {[%clk 0:00:02.6]}
45... gxf4 {[%clk 0:01:14.9]} 46. Kf3 {[%clk 0:00:03.3]} 46... Kc3 {[%clk
0:01:13.5]} 47. Kg4 {[%clk 0:00:03.5]} 47... f3 {[%clk 0:01:13.3]} 48. Kxf3
{[%clk 0:00:02.9]} 48... Kb4 {[%clk 0:01:13.8]} 49. Kg4 {[%clk 0:00:02.1]} 49...
Kxa4 {[%clk 0:01:14.1]} 50. Kxh4 {[%clk 0:00:02.8]} 50... Kb3 {[%clk 0:01:15]}
51. Kg5 {[%clk 0:00:03.1]} 51... a4 {[%clk 0:01:15.9]} 52. h4 {[%clk 0:00:03.5]}
52... a3 {[%clk 0:01:16.8]} 53. h5 {[%clk 0:00:04.4]} 53... a2 {[%clk
0:01:17.7]} 54. h6 {[%clk 0:00:05.1]} 54... a1=Q {[%clk 0:01:18.6]} 55. h7
{[%clk 0:00:05.8]} 55... Qg7+ {[%clk 0:01:17.4]} 0-1

[Event "Early-Titled-Tuesday-Blitz-April-23-2024"]
[Site "Chess.com"]
[Date "2024.04.23"]
[Round "5"]
[White "Maxfan2008"]
[Black "CSB7"]
[Result "1-0"]
[WhiteElo "2610"]
[BlackElo "2800"]
[TimeControl "180+1"]
[EndTime "8:57:11 PDT"]
[Termination "Maxfan2008 won by resignation"]

1. d4 {[%clk 0:03:00.9]} 1... Nf6 {[%clk 0:02:59.7]} 2. c4 {[%clk 0:03:01]} 2...
g6 {[%clk 0:02:59.9]} 3. Nc3 {[%clk 0:03:00.3]} 3... d5 {[%clk 0:03:00.1]} 4.
Nf3 {[%clk 0:02:58.1]} 4... Bg7 {[%clk 0:02:59.7]} 5. h4 {[%clk 0:02:58.7]} 5...
dxc4 {[%clk 0:02:55.7]} 6. e4 {[%clk 0:02:48.5]} 6... c5 {[%clk 0:02:51.2]} 7.
d5 {[%clk 0:02:45.8]} 7... O-O {[%clk 0:02:51.3]} 8. Bxc4 {[%clk 0:02:44.7]}
8... b5 {[%clk 0:02:51.7]} 9. Bxb5 {[%clk 0:02:36.8]} 9... Nxe4 {[%clk
0:02:51.4]} 10. Nxe4 {[%clk 0:02:35]} 10... Qa5+ {[%clk 0:02:51.9]} 11. Nc3
{[%clk 0:02:35.7]} 11... Bxc3+ {[%clk 0:02:52.1]} 12. bxc3 {[%clk 0:02:36.6]}
12... Qxb5 {[%clk 0:02:52.6]} 13. h5 {[%clk 0:02:32.4]} 13... Qc4 {[%clk
0:02:50.4]} 14. hxg6 {[%clk 0:02:27.3]} 14... fxg6 {[%clk 0:02:14.9]} 15. Rh4
{[%clk 0:02:26.5]} 15... Qxc3+ {[%clk 0:02:03.6]} 16. Bd2 {[%clk 0:02:24.2]}
16... Qf6 {[%clk 0:01:59.9]} 17. Bg5 {[%clk 0:02:20.1]} 17... Qc3+ {[%clk
0:01:57.5]} 18. Kf1 {[%clk 0:02:18.7]} 18... Bf5 {[%clk 0:01:25.6]} 19. Kg1
{[%clk 0:02:14]} 19... Nd7 {[%clk 0:01:15.1]} 20. Bxe7 {[%clk 0:02:10.7]} 20...
Rfe8 {[%clk 0:01:12.2]} 21. d6 {[%clk 0:02:06.9]} 21... Qd3 {[%clk 0:01:03.4]}
22. Qc1 {[%clk 0:01:52.8]} 22... Qd5 {[%clk 0:00:47.4]} 23. Qh6 {[%clk
0:01:47.1]} 23... Qf7 {[%clk 0:00:47.9]} 24. Ng5 {[%clk 0:01:45.2]} 24... Qg7
{[%clk 0:00:48]} 25. Qxg7+ {[%clk 0:01:39.9]} 25... Kxg7 {[%clk 0:00:48.9]} 26.
Rxh7+ {[%clk 0:01:39.1]} 26... Kg8 {[%clk 0:00:49.6]} 27. f3 {[%clk 0:01:23.5]}
27... Rab8 {[%clk 0:00:34.7]} 28. Kf2 {[%clk 0:01:19.5]} 28... Rb2+ {[%clk
0:00:27.9]} 29. Kg3 {[%clk 0:01:18.5]} 29... Rb1 {[%clk 0:00:24.4]} 30. Rxb1
{[%clk 0:01:16.8]} 30... Bxb1 {[%clk 0:00:25.3]} 31. Rh4 {[%clk 0:01:14.3]}
31... Bd3 {[%clk 0:00:14.5]} 32. Ra4 {[%clk 0:01:09]} 32... a6 {[%clk
0:00:14.4]} 33. Ne6 {[%clk 0:01:06.2]} 33... c4 {[%clk 0:00:10.2]} 34. Rxa6
{[%clk 0:01:02.6]} 34... c3 {[%clk 0:00:07.9]} 35. Rc6 {[%clk 0:01:03.2]} 35...
c2 {[%clk 0:00:08.3]} 36. Nd4 {[%clk 0:01:01.1]} 36... Ne5 {[%clk 0:00:07]} 37.
Rc7 {[%clk 0:00:57.4]} 37... Ra8 {[%clk 0:00:05.8]} 38. Nxc2 {[%clk 0:00:57.3]}
38... Rxa2 {[%clk 0:00:05.6]} 39. Ne3 {[%clk 0:00:55.9]} 39... Bb5 {[%clk
0:00:04.1]} 40. Rc5 {[%clk 0:00:52.7]} 40... Nd3 {[%clk 0:00:02.8]} 41. Rxb5
{[%clk 0:00:52.8]} 1-0